fUSD/lending_fUSD_20250120
["ID","MTS","AMOUNT","RATE_DAILY","PERIOD"]
[349672165,1737366645480,-212.65,0.00020857,2]
[349672167,1737366645490,-500.0,0.00020857,2]
[349672169,1737366645499,-1409.66,0.00020857,2]
[349672171,1737366645509,-500.0,0.00020857,2]
[349672173,1737366645518,-757.22,0.00020857,2]
[349672175,1737366645527,-1205.54,0.00020857,2]
[349672177,1737366645536,-500.0,0.00020857,2]
[349672179,1737366645546,-710.32,0.00020857,2]
[349672181,1737366645555,-560.9,0.00020857,2]
[349672183,1737366645564,-1912.58,0.00020857,2]
[349672185,1737366645574,-500.0,0.00020857,2]
[349672187,1737366645583,-500.0,0.00020857,2]
[349672189,1737366645592,-1988.81,0.00020857,2]
[349672191,1737366645602,-766.87,0.00020857,2]
[349672193,1737366645611,-500.0,0.00020857,2]
[349672195,1737366645620,-1046.25,0.00020857,2]
[349672197,1737366645629,-1225.69,0.00020857,2]
[349672199,1737366645639,-500.0,0.00020857,2]
[349672201,1737366645647,-500.0,0.00020857,2]
[349672203,1737366645660,-2258.5,0.00020857,2]
[349672205,1737366645673,-2200.19,0.00020857,2]
[349672207,1737366645682,-893.21,0.00020857,2]
[349672209,1737366645692,-595.86,0.00020857,2]
[349672211,1737366645701,-854.57,0.00020857,2]
[349672213,1737366645711,-1197.21,0.00020857,2]
[349672215,1737366645720,-500.0,0.00020857,2]
[349672218,1737366645730,-21.00372146,0.00020857,2]
[349672220,1737366645918,-1025.46050485,0.00020857,2]
[349672230,1737366646302,-841.90532001,0.00020583,2]
[349672231,1737366646375,-2201.19467999,0.00020583,2]
[349672232,1737366646384,-500.0,0.00020583,2]
[349672233,1737366646394,-500.0,0.00020583,2]
[349672234,1737366646403,-112.23577369,0.00020857,2]
[349672235,1737366646413,-500.0,0.00020857,2]
[349672236,1737366646422,-1361.66,0.00020857,2]
[349672237,1737366646432,-500.0,0.00020857,2]
[349672238,1737366646440,-500.0,0.00020857,2]
[349672239,1737366646450,-523.24,0.00020857,2]
[349672240,1737366646459,-500.0,0.00020857,2]
[349672241,1737366646469,-500.0,0.00020857,2]
[349672242,1737366646478,-1152.4,0.00020857,2]
[349672243,1737366646487,-850.5,0.00020857,2]
[349672244,1737366646496,-3043.1,0.00020857,2]
[349672245,1737366646505,-500.0,0.00020857,2]
[349672246,1737366646515,-500.0,0.00020858,2]
[349672247,1737366646525,-500.0,0.00020858,2]
[349672248,1737366646534,-500.0,0.00020858,2]
[349672249,1737366646544,-500.0,0.00020858,2]
[349672250,1737366646553,-500.0,0.00020858,2]
[349672251,1737366646686,-500.0,0.00020858,2]
[349672252,1737366646696,-151.0,0.00020858,7]
[349672253,1737366646706,-151.0,0.00020858,7]
[349672254,1737366646715,-151.0,0.00020858,7]
[349672255,1737366646724,-151.0,0.00020858,7]
[349672256,1737366646733,-151.0,0.00020858,7]
[349672257,1737366646744,-151.0,0.00020858,7]
[349672258,1737366646754,-151.0,0.00020858,7]
[349672259,1737366646763,-151.0,0.00020858,7]
[349672260,1737366646772,-151.0,0.00020858,7]
[349672261,1737366646781,-151.0,0.00020858,7]
[349672262,1737366646793,-151.0,0.00020858,7]
[349672263,1737366646802,-151.0,0.00020858,7]
[349672264,1737366646811,-151.0,0.00020858,7]
[349672265,1737366646821,-151.0,0.00020858,7]
[349672266,1737366646830,-151.0,0.00020858,7]
[349672267,1737366646840,-151.0,0.00020858,7]
[349672268,1737366646849,-151.0,0.00020858,7]
[349672269,1737366646858,-151.0,0.00020858,7]
[349672270,1737366646867,-151.0,0.00020858,7]
[349672271,1737366646876,-151.0,0.00020858,7]
[349672272,1737366646885,-151.0,0.00020858,7]
[349672273,1737366646894,-151.0,0.00020858,7]
[349672274,1737366646904,-151.0,0.00020858,7]
[349672275,1737366646913,-151.0,0.00020858,7]
[349672276,1737366646922,-151.0,0.00020858,7]
[349672277,1737366646931,-151.0,0.00020858,7]
[349672278,1737366646940,-151.0,0.00020858,7]
[349672279,1737366646949,-151.0,0.00020858,7]
[349672280,1737366646958,-151.0,0.00020858,7]
[349672281,1737366646968,-151.0,0.00020858,7]
[349672282,1737366646977,-151.0,0.00020858,7]
[349672283,1737366646986,-151.0,0.00020858,7]
[349672284,1737366646995,-151.0,0.00020858,7]
[349672285,1737366647004,-151.0,0.00020858,7]
[349672286,1737366647013,-151.0,0.00020858,7]
[349672287,1737366647022,-151.0,0.00020858,7]
[349672288,1737366647031,-151.0,0.00020858,7]
[349672289,1737366647039,-151.0,0.00020858,7]
[349672290,1737366647049,-151.0,0.00020858,7]
[349672291,1737366647058,-151.0,0.00020858,7]
[349672292,1737366647068,-151.0,0.00020858,7]
[349672293,1737366647078,-151.0,0.00020858,7]
[349672294,1737366647087,-151.0,0.00020858,7]
[349672295,1737366647096,-151.0,0.00020858,7]
[349672296,1737366647105,-151.0,0.00020858,7]
[349672297,1737366647114,-151.0,0.00020858,7]
[349672298,1737366647123,-151.0,0.00020858,7]
[349672299,1737366647132,-151.0,0.00020858,7]
[349672300,1737366647141,-151.0,0.00020858,7]
[349672301,1737366647151,-151.0,0.00020858,7]
[349672302,1737366647161,-151.0,0.00020858,7]
[349672303,1737366647170,-151.0,0.00020858,7]
[349672304,1737366647180,-151.0,0.00020858,7]
[349672305,1737366647189,-151.0,0.00020858,7]
[349672306,1737366647198,-151.0,0.00020858,7]
[349672307,1737366647208,-151.0,0.00020858,7]
[349672308,1737366647217,-151.0,0.00020858,7]
[349672309,1737366647226,-151.0,0.00020858,7]
[349672310,1737366647236,-151.0,0.00020858,7]
[349672311,1737366647245,-151.0,0.00020858,7]
[349672312,1737366647255,-151.0,0.00020858,7]
[349672313,1737366647264,-151.0,0.00020858,7]
[349672314,1737366647274,-151.0,0.00020858,7]
[349672315,1737366647284,-151.0,0.00020858,7]
[349672316,1737366647293,-151.0,0.00020858,7]
[349672317,1737366647302,-151.0,0.00020858,7]
[349672318,1737366647312,-151.0,0.00020858,7]
[349672319,1737366647321,-151.0,0.00020858,7]
[349672320,1737366647331,-151.0,0.00020858,7]
[349672321,1737366647341,-151.0,0.00020858,7]
[349672322,1737366647350,-151.0,0.00020858,7]
[349672323,1737366647359,-151.0,0.00020858,7]
[349672324,1737366647368,-151.0,0.00020858,7]
[349672325,1737366647377,-222.0,0.00020858,7]
[349672326,1737366647386,-500.0,0.00020858,2]
[349672327,1737366647395,-500.0,0.00020858,2]
[349672328,1737366647405,-563.65,0.00020858,2]
[349672329,1737366647414,-232.60914632,0.00020858,2]
[349672330,1737366647427,-262.91500001,0.00020858,2]
[349672331,1737366647456,-4.47585367,0.00020858,2]
[349672332,1737366647465,-466.97045016,0.00020858,2]
[349672333,1737366647477,-33.02954984,0.00020858,2]
[349672334,1737366647487,-617.14,0.00020858,2]
[349672335,1737366647495,-215.05168317,0.00020858,2]
[349672336,1737366647543,-500.0,0.00020582,2]
[349672337,1737366647552,-411.05831683,0.00020858,2]
[349672338,1737366647562,-500.0,0.00020858,2]
[349672339,1737366647571,-500.0,0.00020858,2]
[349672340,1737366647581,-500.0,0.00020858,2]
[349672341,1737366647591,-500.0,0.00020858,2]
[349672342,1737366647600,-500.0,0.00020858,2]
[349672343,1737366647610,-500.0,0.00020858,2]
[349672344,1737366647619,-500.0,0.00020858,2]
[349672345,1737366647628,-500.0,0.00020858,2]
[349672346,1737366647638,-500.0,0.00020858,2]
[349672347,1737366647647,-500.0,0.00020858,2]
[349672348,1737366647656,-500.0,0.00020858,2]
[349672349,1737366647666,-500.0,0.00020858,2]
[349672350,1737366647682,-673.08,0.00020858,2]
[349672351,1737366647697,-500.0,0.00020858,2]
[349672352,1737366647711,-570.98,0.00020858,2]
[349672353,1737366647724,-500.0,0.00020858,2]
[349672354,1737366647739,-500.0,0.00020858,2]
[349672355,1737366647754,-500.0,0.00020858,2]
[349672356,1737366647769,-595.84,0.00020858,2]
[349672357,1737366647782,-500.0,0.00020858,2]
[349672358,1737366647794,-134.91358367,0.00020858,2]
[349672359,1737366647864,-365.08641633,0.00020858,2]
[349672360,1737366647879,-805.43,0.00020858,2]
[349672361,1737366647892,-500.0,0.00020858,2]
[349672362,1737366647907,-500.0,0.00020858,2]
[349672363,1737366647920,-500.0,0.00020858,2]
[349672364,1737366647935,-544.74,0.00020858,2]
[349672365,1737366647948,-297.32795827,0.00020858,2]
[349672366,1737366647963,-202.67204173,0.00020858,2]
[349672367,1737366647975,-500.0,0.00020858,2]
[349672368,1737366647988,-500.0,0.00020858,2]
[349672369,1737366648005,-1774.0,0.00020858,2]
[349672370,1737366648016,-924.02,0.00020858,2]
[349672371,1737366648027,-11101.62668313,0.00020872,2]
[349672372,1737366648039,-151.67988626,0.00020875,2]
[349672373,1737366648055,-1699.31914788,0.00020884,2]
[349672374,1737366648068,-2215.99876822,0.00020888,2]
[349672375,1737366648088,-1941.69667165,0.00020888,2]
[349672376,1737366648105,-1347.256647,0.00020888,2]
[349672377,1737366648121,-5596.67459626,0.00020888,2]
[349672378,1737366648133,-7552.74442074,0.00020888,2]
[349672379,1737366881041,156.2,0.00010137,2]
[349672381,1737366915726,550.0,0.00015,2]
[349672382,1737366976948,3725.54506247,0.00014781,7]
[349672383,1737367028120,5000.0,0.00024,120]
[349672386,1737367629008,4999.999999,0.00012,2]
[349672387,1737367647103,-151.67272517,0.000169,2]
[349672388,1737367647125,-969.93574389,0.000169,2]
[349672390,1737367746601,201.63,0.0002,60]
[349672391,1737367752547,-1567.5125081,0.000169,2]
[349672392,1737367752573,-432.4874919,0.00017,2]
[349672393,1737367766899,-167.5125081,0.00017,2]
[349672394,1737367766922,-832.4874919,0.00017,7]
[349672396,1737367802337,253.78,0.00010137,2]
[349672403,1737367831466,-253.78,0.00016813,2]
[349672404,1737367831475,-465.05701765,0.00017,7]
[349672405,1737367831486,-1955.42399879,0.00017,7]
[349672406,1737367831498,-132.9845163,0.00017,7]
[349672407,1737367831507,-703.13555873,0.00017617,2]
[349672408,1737367831518,-254.28444127,0.00017617,2]
[349672409,1737367831527,-435.09524773,0.00018164,2]
[349672410,1737367831540,-64.90475227,0.00018164,2]
[349672411,1737367831549,-650.0,0.00019,2]
[349672412,1737367831558,-505.93542855,0.00019,2]
[349672413,1737367832251,-14117.90876389,0.00019,2]
[349672414,1737367832261,-162.71,0.00019032,2]
[349672415,1737367832271,-4353.1,0.00019032,2]
[349672416,1737367832279,-250.0,0.00019039,2]
[349672417,1737367832288,-375.65,0.00019055,2]
[349672418,1737367832297,-250.0,0.00019055,2]
[349672419,1737367832306,-291.74,0.00019085,2]
[349672420,1737367832315,-361.88,0.00019085,2]
[349672421,1737367832324,-547.73,0.00019193,2]
[349672422,1737367832333,-200.0,0.00019302,2]
[349672423,1737367832342,-202.63,0.00019302,2]
[349672424,1737367832351,-13421.44563806,0.00019363,2]
[349672425,1737367832379,-10478.55436194,0.00019363,2]
[349672426,1737367832389,-596.24,0.00019417,30]
[349672427,1737367832398,-520.68458788,0.00019513,2]
[349672428,1737367832407,-1000.0,0.00019605,2]
[349672429,1737367832415,-500.0,0.00019605,2]
[349672430,1737367832424,-250.0,0.00019646,2]
[349672431,1737367832434,-200.0,0.00019815,2]
[349672432,1737367832443,-957.42,0.00019881,2]
[349672433,1737367832453,-160.346,0.0001995,2]
[349672434,1737367832462,-667.56,0.00019999,2]
[349672435,1737367832470,-500.0,0.0002,2]
[349672436,1737367832479,-291.74,0.0002004,2]
[349672437,1737367832488,-150.0,0.0002004,2]
[349672438,1737367832497,-744.03823346,0.00020256,2]
[349672439,1737367832506,-500.0,0.00020356,2]
[349672440,1737367832517,-150.0,0.00020356,2]
[349672441,1737367832527,-216.29,0.00020356,2]
[349672442,1737367832536,-150.0,0.00020356,2]
[349672443,1737367832545,-150.0,0.00020356,2]
[349672444,1737367832554,-150.0,0.00020356,2]
[349672445,1737367832562,-150.0,0.00020356,2]
[349672446,1737367832571,-150.0,0.00020356,2]
[349672447,1737367832580,-150.0,0.00020356,2]
[349672448,1737367832589,-150.0,0.00020356,2]
[349672449,1737367832598,-150.0,0.00020356,2]
[349672450,1737367832607,-9873.9846,0.00020482,2]
[349672451,1737367832617,-2222.65649255,0.00020482,2]
[349672453,1737367832626,-184.58564181,0.00020483,2]
[349672463,1737367832719,-1655.24125819,0.00020483,2]
[349672465,1737367832728,-156.45995296,0.000205,2]
[349672467,1737367832737,-1486.58929509,0.00020539,2]
[349672469,1737367832746,-163.32,0.00020572,2]
[349672471,1737367832755,-973.3151443,0.0002058,2]
[349672473,1737367832764,-942.588,0.00020581,2]
[349672475,1737367832773,-783.85,0.00020581,2]
[349672477,1737367832782,-500.0,0.00020581,2]
[349672478,1737367832791,-627.57,0.00020581,2]
[349672480,1737367832800,-1294.8,0.00020581,2]
[349672482,1737367832809,-500.0,0.00020581,2]
[349672484,1737367832819,-1102.66,0.00020581,2]
[349672486,1737367832829,-840.45,0.00020581,2]
[349672487,1737367832838,-1208.07,0.00020581,2]
[349672488,1737367832847,-500.0,0.00020581,2]
[349672489,1737367832856,-500.0,0.00020581,2]
[349672490,1737367832865,-500.0,0.00020581,2]
[349672491,1737367832874,-945.97,0.00020581,2]
[349672492,1737367832884,-500.0,0.00020581,2]
[349672493,1737367832893,-817.03107819,0.00020581,2]
[349672497,1737367837531,-1025.33892181,0.00020581,2]
[349672498,1737367837540,-1470.21,0.00020581,2]
[349672499,1737367837550,-802.67,0.00020581,2]
[349672500,1737367837560,-500.0,0.00020581,2]
[349672501,1737367837569,-500.0,0.00020581,2]
[349672502,1737367837579,-1105.08,0.00020581,2]
[349672503,1737367837589,-735.91,0.00020581,2]
[349672504,1737367837599,-500.0,0.00020581,2]
[349672505,1737367837608,-500.0,0.00020581,2]
[349672506,1737367837617,-500.0,0.00020581,2]
[349672507,1737367837626,-500.0,0.00020581,2]
[349672508,1737367837635,-1012.56,0.00020581,2]
[349672509,1737367837646,-2077.94,0.00020581,2]
[349672510,1737367837655,-500.0,0.00020581,2]
[349672511,1737367837665,-619.62,0.00020581,2]
[349672512,1737367837674,-500.0,0.00020581,2]
[349672513,1737367837683,-530.44960203,0.00020581,2]
[349672514,1737367837694,-611.69039797,0.00020581,2]
[349672515,1737367837703,-500.0,0.00020581,2]
[349672516,1737367837712,-554.28,0.00020581,2]
[349672517,1737367837721,-500.0,0.00020581,2]
[349672518,1737367837731,-775.7,0.00020581,2]
[349672519,1737367837740,-283.73036969,0.00020581,2]
[349672520,1737367837749,-859.13,0.00020581,2]
[349672521,1737367837758,-1201.08,0.00020581,2]
[349672522,1737367837767,-593.94,0.00020581,2]
[349672523,1737367837776,-634.548108,0.00020582,2]
[349672524,1737367837784,-367.482137,0.00020582,2]
[349672525,1737367837795,-193.013686,0.00020582,2]
[349672526,1737367837804,-500.0,0.00020582,2]
[349672527,1737367837813,-486.68389218,0.00020582,2]
[349672528,1737367837822,-500.0,0.00020582,2]
[349672529,1737367837832,-348.98886691,0.00020582,2]
[349672530,1737367837842,-500.0,0.00020582,2]
[349672531,1737367837851,-500.0,0.00020582,2]
[349672532,1737367837861,-500.0,0.00020582,2]
[349672533,1737367837871,-500.0,0.00020582,2]
[349672534,1737367837880,-500.0,0.00020582,2]
[349672535,1737367837888,-500.0,0.00020582,2]
[349672536,1737367837899,-500.0,0.00020582,2]
[349672537,1737367837908,-500.0,0.00020582,2]
[349672538,1737367837917,-500.0,0.00020582,2]
[349672539,1737367837926,-500.0,0.00020582,2]
[349672540,1737367837935,-500.0,0.00020582,2]
[349672541,1737367837944,-500.0,0.00020582,2]
[349672542,1737367837954,-550.9,0.00020582,2]
[349672543,1737367837963,-500.0,0.00020582,2]
[349672544,1737367837972,-500.0,0.00020582,2]
[349672545,1737367837982,-500.0,0.00020582,2]
[349672546,1737367837991,-500.0,0.00020582,2]
[349672547,1737367838001,-500.0,0.00020582,2]
[349672548,1737367838011,-500.0,0.00020582,2]
[349672549,1737367838021,-426.86415236,0.00020582,2]
[349672550,1737367838030,-500.0,0.00020582,2]
[349672551,1737367838042,-500.0,0.00020582,2]
[349672552,1737367838053,-568.96,0.00020582,2]
[349672553,1737367838064,-538.92101976,0.00020582,2]
[349672554,1737367838073,-500.0,0.00020582,2]
[349672555,1737367838083,-442.22983302,0.00020582,2]
[349672556,1737367838096,-135.99016698,0.00020582,2]
[349672557,1737367838105,-401.1026265,0.00020582,2]
[349672558,1737367838118,-98.8973735,0.00020582,2]
[349672559,1737367838130,-500.0,0.00020582,2]
[349672560,1737367838139,-271.74689622,0.00020582,2]
[349672561,1737367838149,-275.05686908,0.00020582,2]
[349672563,1737367838172,-317.25745895,0.00020582,2]
[349672564,1737367838181,-500.0,0.00020582,2]
[349672565,1737367838190,-500.0,0.00020582,2]
[349672566,1737367838200,-500.0,0.00020582,2]
[349672567,1737367838211,-500.0,0.00020582,2]
[349672568,1737367838221,-500.0,0.00020582,2]
[349672569,1737367838232,-507.48484842,0.00020582,2]
[349672570,1737367838243,-500.0,0.00020582,2]
[349672571,1737367838252,-500.0,0.00020582,2]
[349672572,1737367838261,-382.12291465,0.00020582,2]
[349672573,1737367838271,-500.0,0.00020582,2]
[349672574,1737367838280,-500.0,0.00020582,2]
[349672575,1737367838290,-500.0,0.00020582,2]
[349672576,1737367838301,-500.0,0.00020582,2]
[349672577,1737367838311,-500.0,0.00020582,2]
[349672578,1737367838320,-500.0,0.00020582,2]
[349672579,1737367838330,-500.0,0.00020582,2]
[349672580,1737367838340,-500.0,0.00020582,2]
[349672581,1737367838349,-500.0,0.00020582,2]
[349672582,1737367838358,-500.0,0.00020582,2]
[349672583,1737367838367,-293.03337798,0.00020582,2]
[349672584,1737367838388,-206.96662202,0.00020582,2]
[349672585,1737367838399,-617.85,0.00020582,2]
[349672586,1737367838408,-500.0,0.00020582,2]
[349672587,1737367838418,-500.0,0.00020582,2]
[349672588,1737367838427,-500.0,0.00020582,2]
[349672589,1737367838436,-500.0,0.00020582,2]
[349672590,1737367838447,-500.0,0.00020582,2]
[349672591,1737367838456,-500.0,0.00020582,2]
[349672592,1737367838465,-500.0,0.00020582,2]
[349672593,1737367838474,-500.0,0.00020582,2]
[349672594,1737367838483,-500.0,0.00020582,2]
[349672595,1737367838493,-590.19,0.00020582,2]
[349672596,1737367838503,-500.0,0.00020582,2]
[349672597,1737367838511,-498.88196179,0.00020582,2]
[349672598,1737367838521,-165.498385,0.00020582,2]
[349672599,1737367838530,-500.0,0.00020582,2]
[349672600,1737367838539,-500.0,0.00020582,2]
[349672601,1737367838549,-500.0,0.00020582,2]
[349672602,1737367838559,-500.0,0.00020582,2]
[349672603,1737367838569,-500.0,0.00020582,2]
[349672604,1737367838578,-500.0,0.00020582,2]
[349672605,1737367838588,-500.0,0.00020582,2]
[349672606,1737367838597,-500.0,0.00020582,2]
[349672607,1737367838606,-571.35262411,0.00020582,2]
[349672608,1737367838615,-500.0,0.00020582,2]
[349672609,1737367838625,-555.67630883,0.00020582,2]
[349672610,1737367838634,-579.47,0.00020582,2]
[349672611,1737367838643,-500.0,0.00020582,2]
[349672612,1737367838652,-500.0,0.00020582,2]
[349672613,1737367838661,-500.0,0.00020582,2]
[349672614,1737367838671,-500.0,0.00020582,2]
[349672615,1737367838679,-500.0,0.00020582,2]
[349672616,1737367838689,-500.0,0.00020582,2]
[349672617,1737367838698,-500.0,0.00020582,2]
[349672618,1737367838707,-503.31,0.00020582,2]
[349672619,1737367838716,-503.7,0.00020582,2]
[349672620,1737367838726,-500.0,0.00020582,2]
[349672621,1737367838735,-500.0,0.00020582,2]
[349672622,1737367838744,-597.04,0.00020582,2]
[349672623,1737367838754,-500.0,0.00020582,2]
[349672624,1737367838763,-506.95369606,0.00020582,2]
[349672625,1737367838772,-500.0,0.00020582,2]
[349672626,1737367838781,-500.0,0.00020582,2]
[349672627,1737367838790,-500.0,0.00020582,2]
[349672628,1737367838800,-500.0,0.00020582,2]
[349672629,1737367838809,-500.0,0.00020582,2]
[349672630,1737367838818,-500.0,0.00020582,2]
[349672631,1737367838828,-500.0,0.00020582,2]
[349672632,1737367838837,-383.99387813,0.00020582,2]
[349672633,1737367838847,-501.76,0.00020582,2]
[349672634,1737367838857,-500.0,0.00020582,2]
[349672635,1737367838866,-637.99,0.00020582,2]
[349672636,1737367838875,-500.0,0.00020582,2]
[349672637,1737367838884,-500.0,0.00020582,2]
[349672638,1737367838893,-540.8,0.00020582,2]
[349672639,1737367838903,-500.0,0.00020582,2]
[349672640,1737367838912,-500.0,0.00020582,2]
[349672641,1737367838921,-500.0,0.00020582,2]
[349672642,1737367838930,-631.78,0.00020582,2]
[349672643,1737367838938,-500.0,0.00020582,2]
[349672644,1737367838947,-500.0,0.00020582,2]
[349672645,1737367838956,-500.0,0.00020582,2]
[349672646,1737367838965,-500.0,0.00020582,2]
[349672647,1737367838974,-500.0,0.00020582,2]
[349672648,1737367838983,-179.14749389,0.00020582,2]
[349672650,1737367839839,-320.85250611,0.00020582,2]
[349672651,1737367839849,-500.0,0.00020582,2]
[349672652,1737367839859,-500.0,0.00020582,2]
[349672653,1737367839868,-500.0,0.00020582,2]
[349672654,1737367839878,-500.0,0.00020582,2]
[349672655,1737367839887,-500.0,0.00020582,2]
[349672656,1737367839898,-734.38,0.00020582,2]
[349672657,1737367839907,-282.4821573,0.00020582,2]
[349672658,1737367839919,-283.4378427,0.00020582,2]
[349672659,1737367839928,-500.0,0.00020582,2]
[349672660,1737367839937,-638.06,0.00020582,2]
[349672661,1737367839946,-500.0,0.00020582,2]
[349672663,1737367839955,-500.0,0.00020582,2]
[349672665,1737367839964,-500.0,0.00020582,2]
[349672667,1737367839974,-500.0,0.00020582,2]
[349672669,1737367839983,-500.0,0.00020582,2]
[349672670,1737367839993,-571.01,0.00020582,2]
[349672671,1737367840002,-500.0,0.00020582,2]
[349672672,1737367840011,-500.0,0.00020582,2]
[349672673,1737367840020,-500.0,0.00020582,2]
[349672674,1737367840028,-734.88,0.00020582,2]
[349672675,1737367840038,-500.0,0.00020582,2]
[349672676,1737367840051,-579.72,0.00020582,2]
[349672677,1737367840061,-532.1,0.00020582,2]
[349672678,1737367840071,-500.0,0.00020582,2]
[349672679,1737367840080,-500.0,0.00020582,2]
[349672680,1737367840092,-503.66455936,0.00020582,2]
[349672681,1737367840102,-280.6825834,0.00020582,2]
[349672682,1737367840114,-52.91590879,0.00020582,2]
[349672683,1737367840126,-500.0,0.00020582,2]
[349672684,1737367840138,-500.0,0.00020582,2]
[349672685,1737367840148,-295.01119464,0.00020582,2]
[349672686,1737367840158,-500.0,0.00020582,2]
[349672687,1737367840167,-500.0,0.00020582,2]
[349672688,1737367840176,-500.0,0.00020582,2]
[349672689,1737367840185,-500.0,0.00020582,2]
[349672690,1737367840194,-500.0,0.00020582,2]
[349672691,1737367840203,-577.86,0.00020582,2]
[349672692,1737367840212,-536.87,0.00020582,2]
[349672693,1737367840222,-500.0,0.00020582,2]
[349672694,1737367840231,-500.0,0.00020582,2]
[349672695,1737367840240,-500.0,0.00020582,2]
[349672697,1737367840249,-500.0,0.00020582,2]
[349672699,1737367840259,-408.87286385,0.00020582,2]
[349672707,1737367840319,-91.12713615,0.00020582,2]
[349672709,1737367840328,-458.60602603,0.00020582,2]
[349672711,1737367840339,-41.39397397,0.00020582,2]
[349672713,1737367840349,-704.75,0.00020582,2]
[349672715,1737367840357,-500.0,0.00020582,2]
[349672717,1737367840366,-506.93,0.00020582,2]
[349672719,1737367840376,-500.0,0.00020582,2]
[349672721,1737367840385,-500.0,0.00020582,2]
[349672723,1737367840394,-500.0,0.00020582,2]
[349672724,1737367840405,-188.439275,0.00020582,2]
[349672726,1737367840414,-500.0,0.00020582,2]
[349672728,1737367840423,-500.0,0.00020582,2]
[349672730,1737367840432,-500.0,0.00020582,2]
[349672731,1737367840442,-500.0,0.00020582,2]
[349672733,1737367840451,-658.89,0.00020582,2]
[349672735,1737367840460,-500.0,0.00020582,2]
[349672736,1737367840468,-500.0,0.00020582,2]
[349672738,1737367840478,-500.0,0.00020582,2]
[349672740,1737367840487,-500.0,0.00020582,2]
[349672742,1737367840496,-500.0,0.00020582,2]
[349672743,1737367840505,-533.81,0.00020582,2]
[349672745,1737367840515,-500.0,0.00020582,2]
[349672747,1737367840524,-500.0,0.00020582,2]
[349672749,1737367840533,-500.0,0.00020582,2]
[349672751,1737367840542,-500.0,0.00020582,2]
[349672752,1737367840551,-500.0,0.00020582,2]
[349672754,1737367840560,-324.26073282,0.00020582,2]
[349672756,1737367840569,-980.7,0.00020582,2]
[349672757,1737367840577,-500.0,0.00020582,2]
[349672759,1737367840587,-500.0,0.00020582,2]
[349672761,1737367840596,-500.0,0.00020582,2]
[349672763,1737367840605,-500.0,0.00020582,2]
[349672765,1737367840614,-500.0,0.00020582,2]
[349672766,1737367840623,-500.0,0.00020582,2]
[349672768,1737367840632,-279.59,0.00020582,2]
[349672770,1737367840641,-500.0,0.00020582,2]
[349672772,1737367840652,-500.0,0.00020582,2]
[349672774,1737367840661,-1213.28,0.00020582,2]
[349672775,1737367840670,-500.0,0.00020582,2]
[349672777,1737367840680,-500.0,0.00020582,2]
[349672779,1737367840689,-500.0,0.00020582,2]
[349672781,1737367840699,-500.0,0.00020582,2]
[349672783,1737367840707,-1381.68,0.00020582,2]
[349672785,1737367840716,-500.0,0.00020582,2]
[349672787,1737367840725,-3308.37,0.00020582,2]